[Event "Early-Titled-Tuesday-Blitz-February-13-2024"]
[Site "Chess.com"]
[Date "2024.02.13"]
[Round "1"]
[White "GlavkonVVS"]
[Black "bolwin"]
[Result "0-1"]
[WhiteElo "2600"]
[BlackElo "2272"]
[TimeControl "180+1"]
[EndTime "8:08:07 PST"]
[Termination "bolwin won by checkmate"]

1. c4 {[%clk 0:02:58]} 1... Nf6 {[%clk 0:03:00.9]} 2. Nc3 {[%clk 0:02:57.9]}
2... e5 {[%clk 0:03:01.1]} 3. g3 {[%clk 0:02:58.4]} 3... Nc6 {[%clk 0:03:02]} 4.
Bg2 {[%clk 0:02:58.6]} 4... Bc5 {[%clk 0:03:02.5]} 5. e3 {[%clk 0:02:57.7]} 5...
d6 {[%clk 0:03:02.9]} 6. Nge2 {[%clk 0:02:58]} 6... O-O {[%clk 0:03:03]} 7. d4
{[%clk 0:02:57.4]} 7... Bb6 {[%clk 0:03:02.9]} 8. h3 {[%clk 0:02:56.8]} 8... Re8
{[%clk 0:03:00.9]} 9. O-O {[%clk 0:02:56.2]} 9... exd4 {[%clk 0:03:00.6]} 10.
exd4 {[%clk 0:02:55.9]} 10... Bf5 {[%clk 0:02:59.7]} 11. g4 {[%clk 0:02:55.7]}
11... Bg6 {[%clk 0:02:58.9]} 12. Bg5 {[%clk 0:02:55]} 12... h6 {[%clk
0:02:58.5]} 13. Bh4 {[%clk 0:02:54.9]} 13... Bh7 {[%clk 0:02:49.1]} 14. f4
{[%clk 0:02:35.9]} 14... g5 {[%clk 0:02:39.6]} 15. fxg5 {[%clk 0:02:35.2]} 15...
Ne4 {[%clk 0:02:40.1]} 16. Rxf7 {[%clk 0:02:15.5]} 16... hxg5 {[%clk 0:02:29.4]}
17. Rxh7 {[%clk 0:02:10.5]} 17... Nxc3 {[%clk 0:02:24.5]} 18. bxc3 {[%clk
0:01:45.6]} 18... Kxh7 {[%clk 0:02:24.1]} 19. Qd3+ {[%clk 0:01:44.3]} 19... Kg7
{[%clk 0:02:20.7]} 20. Ng3 {[%clk 0:01:26.5]} 20... gxh4 {[%clk 0:01:36.2]} 21.
Nf5+ {[%clk 0:01:24.2]} 21... Kh8 {[%clk 0:01:33.9]} 22. Qd2 {[%clk 0:01:22.8]}
22... Qf6 {[%clk 0:01:29.9]} 23. Rf1 {[%clk 0:01:22.4]} 23... Ne5 {[%clk
0:00:55]} 24. g5 {[%clk 0:00:39.7]} 24... Nxc4 {[%clk 0:00:41.9]} 25. Qf4 {[%clk
0:00:34.7]} 25... Qg6 {[%clk 0:00:22.7]} 26. Qxh4+ {[%clk 0:00:32.8]} 26... Qh7
{[%clk 0:00:22]} 27. Nh6 {[%clk 0:00:31.3]} 27... Rf8 {[%clk 0:00:20.7]} 28. Rf6
{[%clk 0:00:18.4]} 28... Ne3 {[%clk 0:00:19.6]} 29. Be4 {[%clk 0:00:16.6]} 29...
Rxf6 {[%clk 0:00:16.2]} 30. gxf6 {[%clk 0:00:16.1]} 30... Rg8+ {[%clk
0:00:12.1]} 31. Nxg8 {[%clk 0:00:15.4]} 31... Qxh4 {[%clk 0:00:11.1]} 32. f7
{[%clk 0:00:15.4]} 32... Qg3+ {[%clk 0:00:07.9]} 33. Kh1 {[%clk 0:00:14.7]}
33... Qf4 {[%clk 0:00:06.8]} 34. Ne7 {[%clk 0:00:12.2]} 34... Qxf7 {[%clk
0:00:06.7]} 35. Ng6+ {[%clk 0:00:11.1]} 35... Kg7 {[%clk 0:00:07.2]} 36. Nh4
{[%clk 0:00:11.1]} 36... Qf4 {[%clk 0:00:07.4]} 37. Bxb7 {[%clk 0:00:09]} 37...
Qxh4 {[%clk 0:00:07.1]} 38. Kh2 {[%clk 0:00:08.9]} 38... Qf2+ {[%clk 0:00:07.2]}
39. Kh1 {[%clk 0:00:08.5]} 39... Qg3 {[%clk 0:00:07.5]} 40. a4 {[%clk 0:00:06]}
40... Nf1 {[%clk 0:00:07]} 41. Bg2 {[%clk 0:00:04.6]} 41... Qh2# {[%clk
0:00:07.1]} 0-1

[Event "Early-Titled-Tuesday-Blitz-February-13-2024"]
[Site "Chess.com"]
[Date "2024.02.13"]
[Round "1"]
[White "PLAYER_2006_M"]
[Black "SharapovEvgeny"]
[Result "1-0"]
[WhiteElo "3001"]
[BlackElo "2534"]
[TimeControl "180+1"]
[EndTime "8:08:10 PST"]
[Termination "PLAYER_2006_M won by resignation"]

1. e4 {[%clk 0:03:00.9]} 1... c5 {[%clk 0:02:59.8]} 2. Nf3 {[%clk 0:03:00.5]}
2... d6 {[%clk 0:03:00]} 3. d4 {[%clk 0:03:01]} 3... cxd4 {[%clk 0:03:00.4]} 4.
Nxd4 {[%clk 0:03:01.7]} 4... Nf6 {[%clk 0:03:00.8]} 5. Nc3 {[%clk 0:03:02.3]}
5... Nc6 {[%clk 0:03:01.3]} 6. Bg5 {[%clk 0:03:01.5]} 6... e6 {[%clk 0:03:01.4]}
7. Qd2 {[%clk 0:03:00]} 7... Be7 {[%clk 0:03:01.7]} 8. O-O-O {[%clk 0:02:55.4]}
8... O-O {[%clk 0:03:01.7]} 9. f4 {[%clk 0:02:41.1]} 9... Nxd4 {[%clk
0:03:01.1]} 10. Qxd4 {[%clk 0:02:40.9]} 10... Qa5 {[%clk 0:03:01.7]} 11. Kb1
{[%clk 0:02:29.9]} 11... Rd8 {[%clk 0:03:00.5]} 12. Be2 {[%clk 0:02:21.3]} 12...
Bd7 {[%clk 0:02:59.4]} 13. Bf3 {[%clk 0:01:54.9]} 13... Bc6 {[%clk 0:02:59.1]}
14. Rhe1 {[%clk 0:01:55.4]} 14... h6 {[%clk 0:02:50.9]} 15. Bh4 {[%clk
0:01:51.2]} 15... Qc5 {[%clk 0:02:41.8]} 16. Qxc5 {[%clk 0:01:38.1]} 16... dxc5
{[%clk 0:02:41.6]} 17. e5 {[%clk 0:01:38.2]} 17... Nd5 {[%clk 0:02:38.8]} 18.
Bxe7 {[%clk 0:01:08.1]} 18... Nxe7 {[%clk 0:02:37.5]} 19. Bxc6 {[%clk
0:01:07.6]} 19... Nxc6 {[%clk 0:02:37.1]} 20. Ne4 {[%clk 0:01:08.2]} 20... b6
{[%clk 0:02:21.3]} 21. c3 {[%clk 0:01:07.6]} 21... Rxd1+ {[%clk 0:02:14.3]} 22.
Rxd1 {[%clk 0:01:08.5]} 22... Rd8 {[%clk 0:02:14.6]} 23. Rxd8+ {[%clk
0:01:05.7]} 23... Nxd8 {[%clk 0:02:14.3]} 24. Kc2 {[%clk 0:01:06.6]} 24... Kf8
{[%clk 0:02:02]} 25. Kd3 {[%clk 0:01:02.2]} 25... Ke7 {[%clk 0:02:00.1]} 26. b4
{[%clk 0:01:02.7]} 26... cxb4 {[%clk 0:01:59.3]} 27. cxb4 {[%clk 0:01:03.6]}
27... f6 {[%clk 0:01:55.3]} 28. exf6+ {[%clk 0:01:00.7]} 28... gxf6 {[%clk
0:01:55.2]} 29. Kc4 {[%clk 0:01:01.4]} 29... f5 {[%clk 0:01:48.3]} 30. Nc3
{[%clk 0:00:57.7]} 30... Kd7 {[%clk 0:01:30]} 31. a4 {[%clk 0:00:55.4]} 31... a6
{[%clk 0:01:26.7]} 32. Ne2 {[%clk 0:00:48.1]} 32... Nb7 {[%clk 0:01:19.7]} 33.
Kd4 {[%clk 0:00:44.7]} 33... Kd6 {[%clk 0:01:13.8]} 34. g3 {[%clk 0:00:42]}
34... a5 {[%clk 0:01:11.3]} 35. Kc4 {[%clk 0:00:41.4]} 35... axb4 {[%clk
0:01:10.5]} 36. Kxb4 {[%clk 0:00:42.3]} 36... Kc6 {[%clk 0:00:56.2]} 37. Nd4+
{[%clk 0:00:42.3]} 37... Kd5 {[%clk 0:00:56.3]} 38. Nb3 {[%clk 0:00:41.2]} 38...
Nd6 {[%clk 0:00:52.1]} 39. Nd2 {[%clk 0:00:37.3]} 39... Kd4 {[%clk 0:00:49.5]}
40. Nf3+ {[%clk 0:00:37.5]} 40... Ke3 {[%clk 0:00:47.5]} 41. Ne5 {[%clk
0:00:38.4]} 41... Kf2 {[%clk 0:00:45.6]} 42. Nd7 {[%clk 0:00:35.6]} 42... Nc8
{[%clk 0:00:42.7]} 43. Kb5 {[%clk 0:00:35.3]} 43... Kg2 {[%clk 0:00:42.2]} 44.
Nxb6 {[%clk 0:00:35.1]} 44... Na7+ {[%clk 0:00:41.5]} 45. Ka6 {[%clk 0:00:32.7]}
45... Nc6 {[%clk 0:00:41.5]} 46. Nd7 {[%clk 0:00:26.1]} 46... Kxh2 {[%clk
0:00:40.9]} 47. Kb6 {[%clk 0:00:25.6]} 47... Nb4 {[%clk 0:00:36.8]} 48. a5
{[%clk 0:00:20.9]} 48... Kxg3 {[%clk 0:00:36.3]} 49. Nf6 {[%clk 0:00:19.6]}
49... Kxf4 {[%clk 0:00:34.2]} 50. Kb5 {[%clk 0:00:18.8]} 50... Nc2 {[%clk
0:00:17.1]} 51. a6 {[%clk 0:00:18.2]} 51... Nd4+ {[%clk 0:00:17.5]} 52. Kb6
{[%clk 0:00:18.6]} 52... Ke5 {[%clk 0:00:13.7]} 53. Nh5 {[%clk 0:00:18.3]} 53...
Kd6 {[%clk 0:00:11.4]} 54. a7 {[%clk 0:00:18.6]} 54... Nc6 {[%clk 0:00:10.9]}
55. a8=Q {[%clk 0:00:18.9]} 1-0

[Event "Early-Titled-Tuesday-Blitz-February-13-2024"]
[Site "Chess.com"]
[Date "2024.02.13"]
[Round "1"]
[White "MarcoRiehle"]
[Black "AttilaTurzo"]
[Result "1-0"]
[WhiteElo "2865"]
[BlackElo "2482"]
[TimeControl "180+1"]
[EndTime "8:08:10 PST"]
[Termination "MarcoRiehle won by resignation"]

1. e4 {[%clk 0:02:45.6]} 1... c5 {[%clk 0:02:58.4]} 2. a3 {[%clk 0:02:45.1]}
2... d6 {[%clk 0:02:51.3]} 3. b4 {[%clk 0:02:44.9]} 3... Nf6 {[%clk 0:02:46.8]}
4. Nc3 {[%clk 0:02:43.7]} 4... Nc6 {[%clk 0:02:41.3]} 5. b5 {[%clk 0:02:42.9]}
5... Nd4 {[%clk 0:02:40.2]} 6. Nf3 {[%clk 0:02:43]} 6... Bg4 {[%clk 0:02:38]} 7.
Be2 {[%clk 0:02:42.8]} 7... Nxe2 {[%clk 0:02:32.8]} 8. Qxe2 {[%clk 0:02:42.8]}
8... e6 {[%clk 0:02:30.4]} 9. h3 {[%clk 0:02:39]} 9... Bxf3 {[%clk 0:02:22.7]}
10. Qxf3 {[%clk 0:02:38.6]} 10... Qc7 {[%clk 0:02:19.6]} 11. Bb2 {[%clk
0:02:33.6]} 11... Be7 {[%clk 0:02:19.4]} 12. O-O {[%clk 0:02:32.5]} 12... O-O
{[%clk 0:02:13]} 13. d3 {[%clk 0:02:31.8]} 13... Nd7 {[%clk 0:02:07.9]} 14. Ne2
{[%clk 0:02:27.6]} 14... Bf6 {[%clk 0:02:08.2]} 15. Bxf6 {[%clk 0:02:27.4]}
15... Nxf6 {[%clk 0:02:08.1]} 16. c4 {[%clk 0:02:28]} 16... a6 {[%clk 0:02:06]}
17. Nc3 {[%clk 0:02:26.6]} 17... axb5 {[%clk 0:02:01.5]} 18. Nxb5 {[%clk
0:02:27.5]} 18... Qc6 {[%clk 0:01:56.3]} 19. a4 {[%clk 0:02:26.4]} 19... Nd7
{[%clk 0:01:49.8]} 20. Qg3 {[%clk 0:02:23.2]} 20... Ra6 {[%clk 0:01:33]} 21. f4
{[%clk 0:02:19.8]} 21... f5 {[%clk 0:01:28.6]} 22. Rfe1 {[%clk 0:02:15.6]} 22...
fxe4 {[%clk 0:01:26.9]} 23. Rxe4 {[%clk 0:02:13.3]} 23... Rf6 {[%clk 0:01:18.7]}
24. Rae1 {[%clk 0:02:12.3]} 24... Nf8 {[%clk 0:01:18.1]} 25. Ra1 {[%clk
0:02:02.9]} 25... d5 {[%clk 0:01:16.8]} 26. cxd5 {[%clk 0:02:02]} 26... exd5
{[%clk 0:01:17.7]} 27. Re7 {[%clk 0:02:00.3]} 27... Rf7 {[%clk 0:01:08.2]} 28.
Rxf7 {[%clk 0:01:59.4]} 28... Kxf7 {[%clk 0:01:09.1]} 29. Qg5 {[%clk 0:01:59]}
29... Kg8 {[%clk 0:00:56.6]} 30. Kh2 {[%clk 0:01:49.2]} 30... Qd7 {[%clk
0:00:55.7]} 31. Re1 {[%clk 0:01:45.8]} 31... Re6 {[%clk 0:00:53.2]} 32. Re5
{[%clk 0:01:40.2]} 32... Rxe5 {[%clk 0:00:49.6]} 33. Qxe5 {[%clk 0:01:41.1]}
33... c4 {[%clk 0:00:41.9]} 34. Nd6 {[%clk 0:01:33.5]} 34... Qe6 {[%clk
0:00:38.4]} 35. dxc4 {[%clk 0:01:26.6]} 35... dxc4 {[%clk 0:00:34.6]} 36. Qd4
{[%clk 0:01:09.6]} 36... c3 {[%clk 0:00:33.8]} 37. Nxb7 {[%clk 0:01:09.4]} 37...
c2 {[%clk 0:00:26.8]} 38. Qc3 {[%clk 0:01:09.1]} 38... Qe4 {[%clk 0:00:22.6]}
39. Kg3 {[%clk 0:00:55.3]} 39... Qxb7 {[%clk 0:00:19.5]} 40. Qxc2 {[%clk
0:00:56]} 40... Qb4 {[%clk 0:00:18.2]} 41. Qa2+ {[%clk 0:00:55.5]} 41... Kh8
{[%clk 0:00:17.7]} 42. a5 {[%clk 0:00:55.9]} 42... Qb7 {[%clk 0:00:14.2]} 43. a6
{[%clk 0:00:55.6]} 43... Qa7 {[%clk 0:00:14.8]} 44. Qa3 {[%clk 0:00:53.4]} 44...
Kg8 {[%clk 0:00:13.5]} 45. Qb3+ {[%clk 0:00:53.5]} 45... Kh8 {[%clk 0:00:12.8]}
46. Qa3 {[%clk 0:00:51.2]} 46... Nd7 {[%clk 0:00:12.5]} 47. Qe7 {[%clk
0:00:47.2]} 47... h6 {[%clk 0:00:12.7]} 48. Qe8+ {[%clk 0:00:46.1]} 48... Kh7
{[%clk 0:00:12.6]} 49. Qe4+ {[%clk 0:00:46.5]} 49... Kg8 {[%clk 0:00:12.8]} 50.
Qe6+ {[%clk 0:00:45.4]} 50... Kf8 {[%clk 0:00:11.8]} 51. Kh2 {[%clk 0:00:45.3]}
51... Nb8 {[%clk 0:00:11.7]} 52. Qd6+ {[%clk 0:00:42.1]} 52... Kg8 {[%clk
0:00:12.1]} 53. Qd5+ {[%clk 0:00:42.6]} 53... Kh8 {[%clk 0:00:10.4]} 54. Qb7
{[%clk 0:00:43.2]} 54... Qxb7 {[%clk 0:00:09.2]} 55. axb7 {[%clk 0:00:44.1]}
55... Kg8 {[%clk 0:00:09.7]} 56. g4 {[%clk 0:00:42.5]} 56... Kf7 {[%clk
0:00:10.2]} 57. Kg3 {[%clk 0:00:43.2]} 57... Ke7 {[%clk 0:00:10.9]} 58. f5
{[%clk 0:00:43.5]} 58... Kd7 {[%clk 0:00:11.5]} 59. h4 {[%clk 0:00:44]} 59...
Kc7 {[%clk 0:00:12.2]} 60. g5 {[%clk 0:00:44.4]} 60... hxg5 {[%clk 0:00:12.6]}
61. h5 {[%clk 0:00:44.7]} 61... Kxb7 {[%clk 0:00:13.5]} 62. f6 {[%clk
0:00:45.4]} 62... gxf6 {[%clk 0:00:10.5]} 63. h6 {[%clk 0:00:46]} 63... Nc6
{[%clk 0:00:08.4]} 64. h7 {[%clk 0:00:46.2]} 64... Ne7 {[%clk 0:00:09]} 65. h8=Q
{[%clk 0:00:46.4]} 65... Nf5+ {[%clk 0:00:07.5]} 66. Kg4 {[%clk 0:00:46.3]}
66... Ne3+ {[%clk 0:00:05.6]} 67. Kf3 {[%clk 0:00:46.5]} 67... Nd5 {[%clk
0:00:04.9]} 68. Ke4 {[%clk 0:00:46.9]} 68... Nc7 {[%clk 0:00:04.2]} 69. Qxf6
{[%clk 0:00:46.1]} 69... g4 {[%clk 0:00:03.9]} 70. Qg7 {[%clk 0:00:45.9]} 70...
Kc6 {[%clk 0:00:03.8]} 71. Qxg4 {[%clk 0:00:45.6]} 71... Nd5 {[%clk 0:00:04]}
72. Qe6+ {[%clk 0:00:45.3]} 1-0

[Event "Early-Titled-Tuesday-Blitz-February-13-2024"]
[Site "Chess.com"]
[Date "2024.02.13"]
[Round "1"]
[White "TrahtarBelarus"]
[Black "sjoerd893"]
[Result "1-0"]
[WhiteElo "2871"]
[BlackElo "2488"]
[TimeControl "180+1"]
[EndTime "8:08:15 PST"]
[Termination "TrahtarBelarus won by checkmate"]

1. a3 {[%clk 0:03:00.9]} 1... Nf6 {[%clk 0:02:42.1]} 2. Nf3 {[%clk 0:02:58]}
2... d5 {[%clk 0:02:41.2]} 3. d4 {[%clk 0:02:53.7]} 3... Bf5 {[%clk 0:02:41.1]}
4. Bf4 {[%clk 0:02:50.4]} 4... c6 {[%clk 0:02:34.6]} 5. e3 {[%clk 0:02:48.5]}
5... Qb6 {[%clk 0:02:34.2]} 6. Qc1 {[%clk 0:02:42.9]} 6... Nbd7 {[%clk
0:02:34.1]} 7. Nbd2 {[%clk 0:02:34.8]} 7... Nh5 {[%clk 0:02:32.8]} 8. Bg3 {[%clk
0:02:26.1]} 8... Nxg3 {[%clk 0:02:26.6]} 9. hxg3 {[%clk 0:02:27]} 9... h6 {[%clk
0:02:24.6]} 10. Bd3 {[%clk 0:02:21.6]} 10... Bxd3 {[%clk 0:02:21.3]} 11. cxd3
{[%clk 0:02:22.5]} 11... e6 {[%clk 0:02:21.2]} 12. g4 {[%clk 0:02:15.9]} 12...
Be7 {[%clk 0:02:09.2]} 13. g5 {[%clk 0:02:14.6]} 13... h5 {[%clk 0:02:07.4]} 14.
g4 {[%clk 0:02:09.3]} 14... g6 {[%clk 0:02:07.6]} 15. gxh5 {[%clk 0:02:02.2]}
15... Rxh5 {[%clk 0:02:03]} 16. Rxh5 {[%clk 0:02:01.5]} 16... gxh5 {[%clk
0:02:03.9]} 17. Ke2 {[%clk 0:02:01.9]} 17... O-O-O {[%clk 0:02:01.6]} 18. b4
{[%clk 0:01:56.1]} 18... Rh8 {[%clk 0:01:43.4]} 19. Qc2 {[%clk 0:01:25.7]} 19...
Kb8 {[%clk 0:01:36.3]} 20. Rg1 {[%clk 0:01:20.9]} 20... a5 {[%clk 0:01:25.6]}
21. bxa5 {[%clk 0:01:20]} 21... Qxa5 {[%clk 0:01:25.6]} 22. g6 {[%clk
0:01:13.6]} 22... fxg6 {[%clk 0:01:18.5]} 23. Rxg6 {[%clk 0:01:14.5]} 23... Bf6
{[%clk 0:01:16.5]} 24. e4 {[%clk 0:00:48.3]} 24... h4 {[%clk 0:01:11.9]} 25. e5
{[%clk 0:00:47.3]} 25... Bd8 {[%clk 0:01:08.8]} 26. Rxe6 {[%clk 0:00:44.8]}
26... h3 {[%clk 0:01:07.3]} 27. Rd6 {[%clk 0:00:43.8]} 27... Nb6 {[%clk
0:00:56.5]} 28. Qb1 {[%clk 0:00:39.2]} 28... Bc7 {[%clk 0:00:52.9]} 29. Rg6
{[%clk 0:00:37.7]} 29... Na4 {[%clk 0:00:47.8]} 30. Qg1 {[%clk 0:00:34.3]} 30...
Nc3+ {[%clk 0:00:46.6]} 31. Ke3 {[%clk 0:00:34.8]} 31... Ka7 {[%clk 0:00:36.1]}
32. Rg8 {[%clk 0:00:30.1]} 32... Rxg8 {[%clk 0:00:20.5]} 33. Qxg8 {[%clk
0:00:29.1]} 33... Qxa3 {[%clk 0:00:21.2]} 34. Qh7 {[%clk 0:00:24]} 34... Bb6
{[%clk 0:00:18.7]} 35. Qxh3 {[%clk 0:00:22.3]} 35... Nd1+ {[%clk 0:00:18.9]} 36.
Ke2 {[%clk 0:00:22.9]} 36... Nb2 {[%clk 0:00:18.9]} 37. Qh7 {[%clk 0:00:22.5]}
37... Qc3 {[%clk 0:00:17.7]} 38. e6 {[%clk 0:00:18.7]} 38... Qc2 {[%clk
0:00:14.9]} 39. e7 {[%clk 0:00:17]} 39... Qd1+ {[%clk 0:00:15]} 40. Ke3 {[%clk
0:00:17.6]} 40... Bxd4+ {[%clk 0:00:14.6]} 41. Kxd4 {[%clk 0:00:14.7]} 41... Qe2
{[%clk 0:00:14.5]} 42. Qf7 {[%clk 0:00:08.3]} 42... Qxd3+ {[%clk 0:00:11.6]} 43.
Ke5 {[%clk 0:00:08.6]} 43... Qe2+ {[%clk 0:00:10.1]} 44. Kd6 {[%clk 0:00:08.8]}
44... Qb5 {[%clk 0:00:04.4]} 45. e8=Q {[%clk 0:00:07.8]} 45... Qb4+ {[%clk
0:00:05]} 46. Kd7 {[%clk 0:00:07.6]} 46... Nd3 {[%clk 0:00:05.8]} 47. Qfe7
{[%clk 0:00:05.1]} 47... Nc5+ {[%clk 0:00:05.7]} 48. Kd6 {[%clk 0:00:04.9]}
48... Nd3+ {[%clk 0:00:06.2]} 49. Ke6 {[%clk 0:00:05]} 49... Nc5+ {[%clk
0:00:06.8]} 50. Kf7 {[%clk 0:00:05.2]} 50... Qf4+ {[%clk 0:00:07]} 51. Qf6
{[%clk 0:00:05.3]} 51... Qg4 {[%clk 0:00:05.9]} 52. Qe3 {[%clk 0:00:04.9]} 52...
Qh5+ {[%clk 0:00:05.7]} 53. Qg6 {[%clk 0:00:05]} 53... Qh3 {[%clk 0:00:03.7]}
54. Qxc5+ {[%clk 0:00:04.9]} 54... b6 {[%clk 0:00:04.4]} 55. Qe7+ {[%clk
0:00:04.6]} 55... Ka6 {[%clk 0:00:04.1]} 56. Qd3+ {[%clk 0:00:04.8]} 56... b5
{[%clk 0:00:04.3]} 57. Qda3+ {[%clk 0:00:05.4]} 57... Kb6 {[%clk 0:00:04.5]} 58.
Qaa7# {[%clk 0:00:06]} 1-0

[Event "Early-Titled-Tuesday-Blitz-February-13-2024"]
[Site "Chess.com"]
[Date "2024.02.13"]
[Round "1"]
[White "DenLaz"]
[Black "pooh2012"]
[Result "1/2-1/2"]
[WhiteElo "3039"]
[BlackElo "2545"]
[TimeControl "180+1"]
[EndTime "8:08:17 PST"]
[Termination "Game drawn by repetition"]

1. d4 {[%clk 0:02:28.3]} 1... Nf6 {[%clk 0:02:58.7]} 2. c4 {[%clk 0:02:28.6]}
2... e6 {[%clk 0:02:58.5]} 3. Nf3 {[%clk 0:02:29.3]} 3... c5 {[%clk 0:02:57.2]}
4. d5 {[%clk 0:02:28.9]} 4... b5 {[%clk 0:02:56.9]} 5. dxe6 {[%clk 0:02:15.3]}
5... fxe6 {[%clk 0:02:56]} 6. cxb5 {[%clk 0:01:58.3]} 6... a6 {[%clk 0:02:54.5]}
7. e4 {[%clk 0:01:55.7]} 7... Nxe4 {[%clk 0:02:43.5]} 8. Bd3 {[%clk 0:01:55.5]}
8... Nf6 {[%clk 0:02:36.7]} 9. O-O {[%clk 0:01:52.4]} 9... Be7 {[%clk
0:02:23.5]} 10. Bg5 {[%clk 0:01:50.1]} 10... O-O {[%clk 0:02:18.6]} 11. Qc2
{[%clk 0:01:45]} 11... h6 {[%clk 0:02:12.5]} 12. Bxf6 {[%clk 0:01:36]} 12...
Bxf6 {[%clk 0:02:13.4]} 13. Nbd2 {[%clk 0:01:36.4]} 13... Qb6 {[%clk 0:01:37.1]}
14. Ne4 {[%clk 0:01:18.3]} 14... axb5 {[%clk 0:01:21.9]} 15. Nxc5 {[%clk
0:01:16.8]} 15... Nc6 {[%clk 0:01:13.4]} 16. a3 {[%clk 0:01:11.1]} 16... Nd4
{[%clk 0:01:09.3]} 17. Nxd4 {[%clk 0:01:08.7]} 17... Bxd4 {[%clk 0:01:10.2]} 18.
Nb3 {[%clk 0:01:08.9]} 18... Bf6 {[%clk 0:00:59.5]} 19. Qe2 {[%clk 0:01:06]}
19... Bb7 {[%clk 0:00:43.3]} 20. Rac1 {[%clk 0:01:04.6]} 20... Bc6 {[%clk
0:00:32.7]} 21. Nc5 {[%clk 0:00:55.5]} 21... Bd4 {[%clk 0:00:24]} 22. Nb3 {[%clk
0:00:35.2]} 22... Bf6 {[%clk 0:00:19.1]} 23. Rc2 {[%clk 0:00:35.3]} 23... b4
{[%clk 0:00:18]} 24. Nc5 {[%clk 0:00:28.7]} 24... bxa3 {[%clk 0:00:13.1]} 25.
bxa3 {[%clk 0:00:29.6]} 25... Rxa3 {[%clk 0:00:11.7]} 26. Be4 {[%clk 0:00:24.3]}
26... Bd4 {[%clk 0:00:09.3]} 27. Bxc6 {[%clk 0:00:12.2]} 27... Qxc6 {[%clk
0:00:10.2]} 28. Nb3 {[%clk 0:00:07.6]} 28... Qd5 {[%clk 0:00:10.4]} 29. Nxd4
{[%clk 0:00:08]} 29... Qxd4 {[%clk 0:00:11.1]} 30. Rd2 {[%clk 0:00:08.9]} 30...
Qa7 {[%clk 0:00:10.6]} 31. Rfd1 {[%clk 0:00:07.4]} 31... Rf7 {[%clk 0:00:07.3]}
32. h4 {[%clk 0:00:07.8]} 32... Ra4 {[%clk 0:00:07.2]} 33. g3 {[%clk 0:00:07.6]}
33... Ra5 {[%clk 0:00:07.1]} 34. Qe4 {[%clk 0:00:07.5]} 34... Raf5 {[%clk
0:00:07.3]} 35. Qe1 {[%clk 0:00:07]} 35... h5 {[%clk 0:00:07.3]} 36. Kg2 {[%clk
0:00:07.1]} 36... d5 {[%clk 0:00:07.3]} 37. Re2 {[%clk 0:00:07]} 37... Qb7
{[%clk 0:00:06.5]} 38. Rb1 {[%clk 0:00:05.5]} 38... Qc6 {[%clk 0:00:06]} 39. Rc1
{[%clk 0:00:06.1]} 39... Qb7 {[%clk 0:00:05.6]} 40. Rb1 {[%clk 0:00:03.4]} 40...
Qc6 {[%clk 0:00:05.6]} 41. Kg1 {[%clk 0:00:04]} 41... d4 {[%clk 0:00:05.2]} 42.
Rxe6 {[%clk 0:00:04]} 42... Qf3 {[%clk 0:00:05.3]} 43. Rb2 {[%clk 0:00:04.7]}
43... Kh7 {[%clk 0:00:05.3]} 44. Qe4 {[%clk 0:00:04.4]} 44... Qd1+ {[%clk
0:00:04.9]} 45. Kg2 {[%clk 0:00:04.5]} 45... d3 {[%clk 0:00:04.9]} 46. Re5
{[%clk 0:00:04.6]} 46... Qg4 {[%clk 0:00:04.8]} 47. Qxg4 {[%clk 0:00:04.9]}
47... hxg4 {[%clk 0:00:05.7]} 48. Re4 {[%clk 0:00:03.6]} 48... Rd5 {[%clk
0:00:05.2]} 49. Rd2 {[%clk 0:00:04]} 49... Rc7 {[%clk 0:00:05.1]} 50. Re3 {[%clk
0:00:03.7]} 50... Rc3 {[%clk 0:00:05]} 51. Kf1 {[%clk 0:00:03.6]} 51... Kg6
{[%clk 0:00:05]} 52. Kg1 {[%clk 0:00:04.2]} 52... Kf5 {[%clk 0:00:05.1]} 53. Kg2
{[%clk 0:00:04.9]} 53... Rd4 {[%clk 0:00:04.8]} 54. Kg1 {[%clk 0:00:02.7]} 54...
Rd5 {[%clk 0:00:05.4]} 55. Kg2 {[%clk 0:00:03.3]} 55... Rb3 {[%clk 0:00:05.6]}
56. Kf1 {[%clk 0:00:03.7]} 56... Rc3 {[%clk 0:00:05.8]} 57. Kg2 {[%clk
0:00:04.3]} 1/2-1/2